[Event "Lliga Catalana DH 2023"]
[Site "Catalonia"]
[Date "2023.03.25"]
[Round "10.10"]
[White "Jimenez Ruano, Adrian"]
[Black "Perez Manas, Benjamin"]
[Result "1-0"]
[ECO "D27"]
[WhiteElo "2235"]
[BlackElo "2192"]
[Annotator "TA"]
[PlyCount "79"]
[EventDate "2023.01.24"]
[EventType "team-tourn"]
[EventCountry "ESP"]
[SourceTitle "playchess.com"]
[Source "ChessBase"]
[SourceQuality "1"]
[TimeControl "40/5400+30:1800+30"]

{[%evp 16,79,10,6,6,8,14,10,38,16,46,2,24,29,44,20,25,20,15,21,18,22,23,8,12,7,13,0,0,0,0,0,0,0,0,0,0,0,0,0,0,0,0,0,0,0,0,0,0,0,91,22,10,8,8,8,18,21,5181,5085,5257,5214,29984,29985,29985,29986]} 1. d4 {[%emt 0:00:01]} d5 {[%emt 0:00:41]} 2. c4 {[%emt 0:00:06]} dxc4 {[%emt 0:00:44]} 3. Nf3 {[%emt 0:00:40]} Nf6 {[%emt 0:00:27]} 4. e3 {[%emt 0:00:09]} e6 {[%emt 0:00:08]} 5. Bxc4 {[%emt 0:00:08]} a6 {[%emt 0:00:15]} 6. O-O {[%emt 0:01:12]} c5 {[%emt 0:00:31]} 7. a4 {[%emt 0:08:34]} Nc6 {[%emt 0:00:54]} 8. Qe2 {[%emt 0:00:43]} cxd4 {[%emt 0:12:19]} 9. Rd1 {[%emt 0:02:18]} Bd6 {[%emt 0:14:52] D27: Queen's Gambit Accepted: Classical main line: 7 e4!? and 7 a4.} 10. exd4 {[%emt 0:02:15] [#] d5 would be deadly.} O-O {[%emt 0:00:28]} 11. Nc3 {[%emt 0:00:11]} h6 {[%emt 0:26:34] Against Bg5. The position is equal.} 12. Ne5 {[%emt 0:17:49] [#]} Nb4 $146 {[%emt 0:01:23]} ({Predecessor:} 12... Qc7 13. Bf4 Rd8 14. Rac1 Bd7 15. Ne4 Nxe4 16. Qxe4 Be8 17. h4 Qe7 18. Bg3 Rac8 {0-1 Mohammad,N (2461)-Ganguly,S (2589) MPL Indian Chess Tour N4 rapid 2022 (8)}) 13. Bf4 {[%emt 0:03:28]} Nbd5 {[%emt 0:07:38]} (13... Nfd5 $5 {[%cal Rd5f4]} 14. Bg3 b6 $11) 14. Bg3 {[%emt 0:00:31]} b6 {[%emt 0:04:30]} 15. Nxd5 {[%emt 0:35:45]} Nxd5 {[%emt 0:01:03]} 16. Bxd5 {[%emt 0:05:20]} exd5 {[%emt 0:00:06]} 17. Nc6 {[%emt 0:00:10]} Qd7 {[%emt 0:01:11]} 18. Bxd6 {[%emt 0:00:29]} Qxd6 {[%emt 0:00:06]} 19. Rac1 {[%emt 0:01:20]} (19. Ne7+ {looks sharper.} Kh7 20. Qe5 Rd8 21. Rac1) 19... Be6 {[%emt 0:05:27][%cal Bc8e6,Be6g4,Bg4h5][%mdl 32]} 20. Qe5 {[%emt 0:02:06]} Qd7 {[%emt 0:00:35] Black is weak on the dark squares} 21. b4 {[%emt 0:02:49]} Rfe8 {[%emt 0:00:56][%cal Bf8e8,Be8e6,Be6g6,Bg6g5,Bg5a5][%mdl 32] [#] White must now prevent ...Bg4.} (21... Rfc8 $5 22. b5 $8 f6 $11) 22. Qf4 {[%emt 0:01:26]} Bg4 {[%emt 0:10:54]} 23. f3 {[%emt 0:03:19]} Bh5 {[%emt 0:00:18]} 24. a5 {[%emt 0:02:57]} bxa5 {[%emt 0:00:51]} 25. bxa5 {[%emt 0:00:01]} Re6 {[%emt 0:02:28]} 26. Ne5 {[%emt 0:00:57]} Qa4 {[%emt 0:00:56]} 27. Qf5 {[%emt 0:02:28]} Bg6 $1 {[%emt 0:02:00]} 28. Nxg6 {[%emt 0:00:07]} Rxg6 {[%emt 0:00:05]} 29. Qxd5 {[%emt 0:00:10]} Rb8 {[%emt 0:00:07]} 30. Rd2 {[%emt 0:01:27]} Qa3 {[%emt 0:01:33]} 31. Rdc2 $36 {[%emt 0:03:52][%mdl 2048] White is more active.} Rg5 {[%emt 0:03:17] Repels h3} 32. Qe4 {[%emt 0:00:57] Prevents Qe3+} g6 {[%emt 0:01:17]} (32... Rd8 $1 $11) 33. h4 {[%emt 0:02:18]} (33. Rc8+ $16 Kh7 34. h4) 33... Rxa5 $11 {[%emt 0:01:06]} 34. Rc8+ {[%emt 0:00:22]} Kg7 $1 {[%emt 0:00:16]} 35. d5 {[%emt 0:01:01] Threatening mate with Qd4+.} Rxc8 {[%emt 0:00:45]} (35... Qb2 {with more complications.} 36. Kh2 Rxc8 37. Rxc8 Ra2) 36. Rxc8 {[%emt 0:00:31]} Qa1+ {[%emt 0:01:06][%mdl 8192] Black cannot hold the game after this.} (36... Qb2 $11 37. Kh2 Ra2) 37. Kh2 $18 {[%emt 0:00:11] Qe8 would kill now.} Qf6 {[%emt 0:00:18]} 38. Qb4 {[%emt 0:00:31] Intending Qf8+ and mate.} Qe5+ {[%emt 0:00:20]} 39. f4 {[%emt 0:00:20]} Qxd5 {[%emt 0:00:15]} 40. Qc3+ {[%emt 0:00:26] Weighted Error Value: White=0.09 (flawless) /Black=0.29 (precise)} 1-0

[Event "Lliga Catalana DH 2023"]
[Site "Catalonia"]
[Date "2023.03.25"]
[Round "10.10"]
[White "Gomez Jurado, Luis Alberto"]
[Black "Vehi Bach, Victor Manuel"]
[Result "1/2-1/2"]
[ECO "A37"]
[WhiteElo "2048"]
[BlackElo "2242"]
[Annotator "TA"]
[PlyCount "70"]
[EventDate "2023.01.24"]
[EventType "team-tourn"]
[EventCountry "ESP"]
[SourceTitle "playchess.com"]
[Source "ChessBase"]
[SourceQuality "1"]
[TimeControl "40/5400+30:1800+30"]

{[%evp 11,70,38,26,27,62,-1,14,21,20,41,19,-9,34,34,30,-20,81,85,91,0,21,-18,-24,-18,-39,-67,0,0,0,-92,23,0,0,0,0,10,21,-17,-27,-23,16,-63,0,0,0,0,0,0,0,0,0,0,0,0,19,0,6,0,6,0,19]} 1. Nf3 c5 2. c4 g6 3. g3 Bg7 4. Bg2 Nc6 5. Nc3 Nh6 6. h4 {[%cal Bh2h4,Bh4h5,Bh5h6][%mdl 32]} d6 7. h5 {A37: Symmetrical English vs ...g6: 4 Bg2 Bg7 5 Nf3.} Nf5 8. e3 {[#]} (8. d3 $14) 8... e6 $146 ({Predecessor:} 8... Qd7 9. a3 e6 10. Rb1 b6 11. g4 Nfe7 12. d4 gxh5 13. Rxh5 Bb7 14. dxc5 Bxc3+ 15. bxc3 dxc5 16. Qxd7+ Kxd7 {1-0 Jovic,S (2206)-Isajevsky,A (2403) Titled Tuesday intern op 22nd Dec blitz 2020 (11)}) 9. g4 {[%cal Bg3g4,Bg4g5][%mdl 32]} Nh6 10. g5 Nf5 11. Ne2 (11. h6 $5 {[%cal Rh6g7]} Bf8 12. O-O $14) 11... e5 12. h6 Bf8 13. Nc3 (13. d4 $142) 13... f6 (13... Be7 $11) 14. gxf6 $1 $16 Qxf6 {[#]} 15. Nd5 (15. d4 $1 $16) 15... Qd8 $11 16. d3 {[%cal Ob2b4]} Nxh6 17. Nd2 Bg7 18. Qf3 Bg4 (18... Nf5 $1 $15) 19. Qg3 {[%cal Oh1h6] And now Rxh6! would win.} Be6 20. Bh3 {[#]} (20. Ne4 $11 {keeps the balance.}) 20... Bxh3 ({Black should try} 20... Bxd5 $1 $17 21. cxd5 Nb4) 21. Rxh3 Ne7 22. Ne4 Nxd5 23. cxd5 Qe7 (23... O-O {is more complex.} 24. Ng5 Nf5 25. Qg2 h5) 24. Ng5 (24. Qg2 $5) 24... Nf5 25. Qg2 Bf6 26. Ne6 (26. Nxh7 $1 $11 Bh4 27. Ng5 (27. Qxg6+ Qf7 $11)) 26... Ng7 (26... Qf7 $1 $15) 27. Rxh7 $1 {[%mdl 64] Remove Defender, Decoy. The position is equal.} Rxh7 28. Qxg6+ Kd7 {[%cal Be8d7,Bd7e6,Be6f7][%mdl 32]} 29. Qxh7 Nxe6 30. dxe6+ Kxe6 31. Qh3+ Kf7 32. Qh5+ Ke6 33. Qg4+ Kf7 34. Qh5+ Ke6 35. Qg4+ Kf7 {Weighted Error Value: White=0.22 (precise) /Black=0.21 (precise)} 1/2-1/2